Cogmind - Beta 13 @@@ ROGUE MODE // 2024.04.07 @ 22:04:59 Player: f_ Result: Destroyed by G-34 Mercenary with Small Laser Performance ------------- Evolutions (0) 0 Regions Visited (1) 200 Robots Destroyed (17) 85 Value Destroyed (424) 424 Prototype IDs (0) 0 Alien Tech Used (0) 0 Bonus (0) 0 TOTAL SCORE: 709 Bonus ------- None Cogmind --------- Core Integrity 0/250 Matter 290/300 Energy 75/100 System Corruption 0% Temperature Cool (27) Movement Walking (120) Location -10/Materials Parts ------- > --- POWER (1) -------- (None) > --- PROPULSION (2) --- Aluminum Leg > --- UTILITY (2) ------ Small Storage Unit > --- WEAPON (2) ------- Medium Laser > --- INVENTORY (8) ---- Light Ion Engine Flight Unit Improved Heat Sink Sensor Array Signal Interpreter Hacking Suite Hacking Suite Datajack Peak State ------------ > --- POWER ------------ Light Ion Engine > --- PROPULSION ------- Light Treads Compact Wheel > --- UTILITY ---------- Small Storage Unit > --- WEAPON ----------- EM Pulse Gun Medium Laser > --- INVENTORY -------- (None) [Rating: 6] Favorites ----------- Power Light Ion Engine Engine Light Ion Engine Propulsion Compact Wheel Treads Light Treads Leg Aluminum Leg Wheel Compact Wheel Utility Small Storage Unit Storage Small Storage Unit Weapon Medium Laser Energy Gun Medium Laser Build | -11 -10 ------- Run | Yrd Mat Slots Evolved . | . . Power . | . . Propulsion . | . . Utility . | . . Weapon . | . . Parts Attached 9 | 6 3 Power 2 | 1 1 Engine 2 | 1 1 Core . | . . Reactor . | . . Propulsion 3 | 2 1 Treads 1 | 1 . Leg 1 | . 1 Wheel 1 | 1 . Hover . | . . Flight . | . . Utility 1 | 1 . Device . | . . Storage 1 | 1 . Processor . | . . Hackware . | . . Protection . | . . Artifact . | . . Weapon 3 | 2 1 Energy Gun 3 | 2 1 Energy Cannon . | . . Ballistic Gun . | . . Ballistic Cannon . | . . Launcher . | . . Special Weapon . | . . Impact Weapon . | . . Slashing Weapon . | . . Piercing Weapon . | . . Special Melee Weapon . | . . Unidentified Prototypes . | . . Parts Lost 6 | . 6 Power 2 | . 2 Propulsion 2 | . 2 Utility . | . . Weapon 2 | . 2 Highest Loss Streak 3 | . 3 To Critical Strikes . | . . Average Slot Usage (%) 63 | . 63 Engine 12 | . 12 Treads 8 | . 8 Wheel 13 | . 13 Storage 14 | . 14 Energy Gun 14 | . 14 Naked Turns . | . . Heaviest Build 12 | 12 12 Greatest Support 20 | 20 20 Greatest Overweight (x) 1 | . 1 Average Overweight (x) . | . . Largest Inventory Capacity 8 | 8 8 Average Capacity 7 | 7 8 Most Carried 8 | 1 8 Average Carried 3 | . 3 Final Capacity 8 | 8 8 Final Carried 8 | 1 8 Class Distribution -------------------- 100% | Mutant Dominant Class ---------------- Mutant | -10/Materials Resources | -11 -10 ----------- Run | Yrd Mat Matter Collected 267 | 255 12 Remotely . | . . Salvage Created 538 | . 538 Parts 29 | . 29 Haulers Intercepted 1 | . 1 Recyclers Shooed . | . . Parts Field Recycled . | . . Retrieved Matter . | . . Parts Self-Destructed . | . . Prevented . | . . Kills | -11 -10 ------- Run | Yrd Mat Combat Hostiles Destroyed 12 | . 12 Guns 12 | . 12 Classes Destroyed 6 | . 6 Worker 1 | . 1 Hauler 1 | . 1 Operator 2 | . 2 Watcher 1 | . 1 Swarmer 2 | . 2 Grunt 10 | . 10 Best Kill Streak 3 | . 3 Combat Bots Only 3 | . 3 Max Kills in Single Turn 1 | . 1 Gunslinging . | . . Exploded . | . . Melee . | . . Uniques/NPCs Destroyed . | . . Combat | -11 -10 -------- Run | Yrd Mat Hostile Shots Fired 88 | . 88 Missed 27 | . 27 Damage Taken 698 | . 698 Core 253 | . 253 Absorbed by Shields . | . . Core Remaining (%) 100 | 100 . Volleys Fired 109 | . 109 Largest 2 | . 2 Hottest 90 | . 90 Shots Fired 114 | . 114 Gun 114 | . 114 Cannon . | . . Launcher . | . . Special . | . . Kinetic . | . . Thermal 109 | . 109 Explosive . | . . Electromagnetic 5 | . 5 Robot Hit Streak 21 | . 21 Robot Miss Streak 4 | . 4 Penetration Max . | . . Secondary Targets . | . . Shots Hit Robots 72 | . 72 Core Hits 31 | . 31 Critical Kills . | . . Critical Parts Destroyed . | . . Critical Strikes 9 | . 9 Burn 8 | . 8 Corrupt 1 | . 1 Melee Attacks . | . . Impact . | . . Slashing . | . . Piercing . | . . Sneak Attacks . | . . Combat Hostiles . | . . Follow-up Attacks . | . . Damage Inflicted 972 | . 972 Guns 968 | . 968 Cannons . | . . Explosions . | . . Melee . | . . Ramming 4 | . 4 Kinetic . | . . Thermal 900 | . 900 Explosive . | . . Electromagnetic 68 | . 68 Impact . | . . Slashing . | . . Piercing . | . . Highest Corruption . | . . Average Corruption . | . . Corruption Purged . | . . Corruption Blocked . | . . Overload Shots . | . . Overflow Damage . | . . Projectiles . | . . Explosions . | . . Melee . | . . Knockbacks . | . . Impact . | . . Kinetic . | . . Secondary . | . . Self-Inflicted Damage . | . . Shots . | . . Rammed . | . . Targets Rammed 2 | . 2 Kicked 2 | . 2 Crushed . | . . Highest Temperature 262 | . 262 Average Temperature 47 | . 47 Received Heat Transfer 324 | . 324 Siege Activations . | . . Robots Corrupted . | . . Combat Hostiles . | . . Parts Fried . | . . Impact Corruptions . | . . Robots Melted . | . . Combat Hostiles . | . . Parts Melted 5 | . 5 Heat Transferred 3145 | . 3145 Parts Sabotaged . | . . Parts Stolen . | . . Parts Stripped . | . . Power Chain Reactions . | . . Alert | -11 -10 ------- Run | Yrd Mat Peak Influence 254 | . 254 Initial . | . . Average 117 | . 125 Maximum Alert Level 1 | . 1 Low Security (%) 88 | 100 88 Level 1 11 | . 11 Level 2 . | . . Level 3 . | . . Level 4 . | . . Level 5 . | . . High Security . | . . Max Security . | . . Squads Dispatched 5 | . 5 Investigation 1 | . 1 Extermination . | . . Reinforcement 4 | . 4 Assault . | . . Garrison . | . . Intercept . | . . Searches Triggered . | . . Construction Impeded . | . . Haulers Reinforced . | . . Active Scanning Responses . | . . Cargo Convoy Interrupts . | . . Stealth | -11 -10 --------- Run | Yrd Mat Distress Signals 3 | . 3 Communications Jammed . | . . Distress Signals . | . . Times Spotted 34 | . 34 Peak Tracking Total 6 | . 6 Tactical Retreats 2 | . 2 Traps | -11 -10 ------- Run | Yrd Mat Traps Triggered 2 | . 2 Indirectly . | . . Trap Hack Attempts . | . . Triggered . | . . Disarmed . | . . Reprogrammed . | . . Reused . | . . Traps Extracted . | . . Installed . | . . Triggered . | . . Machines | -11 -10 ---------- Run | Yrd Mat Machines Disabled . | . . Max in Single Turn . | . . Machines Repaired . | . . Machines Dismantled . | . . Machines Sabotaged . | . . Overloaded Fab Kills . | . . Hacking | -11 -10 --------- Run | Yrd Mat Machines Accessed 4 | . 4 Terminals 4 | . 4 Fabricators . | . . Repair Stations . | . . Recycling Units . | . . Scanalyzers . | . . Garrison Access . | . . Total Hacks 11 | . 11 Successful 5 | . 5 Failed 6 | . 6 Catastrophic 1 | . 1 Database Lockouts . | . . Manual 12 | . 12 Terminals 11 | . 11 Fabricators . | . . Repair Stations . | . . Recycling Units . | . . Scanalyzers . | . . Garrison Access . | . . Terminal Hacks 3 | . 3 Robot Analysis 2 | . 2 Terminal Index 1 | . 1 Fabricator Hacks . | . . Repair Station Hacks . | . . Recycling Unit Hacks . | . . Scanalyzer . | . . Garrison Access Hacks . | . . Unauthorized Hacks 2 | . 2 Terminals 2 | . 2 Botnet 1 | . 1 Operators 1 | . 1 Fabricators . | . . Repair Stations . | . . Recycling Units . | . . Scanalyzers . | . . Garrison Access . | . . Data Cores Recovered . | . . Used . | . . Hacking Detections 3 | . 3 Full Trace Events 2 | . 2 Feedback Events . | . . Feedback Blocked . | . . Robot Schematics Acquired . | . . Robots Built . | . . Authchips . | . . Time . | . . Total Robot Build Rating . | . . Part Schematics Acquired . | . . Parts Built . | . . Authchips . | . . Time . | . . Total Part Build Rating . | . . Parts Repaired . | . . Time . | . . Parts Recycled . | . . Recycled Matter . | . . Retrieved Matter . | . . Retrieved Components . | . . Parts Scanalyzed . | . . Part Schematics Acquired . | . . Parts Damaged . | . . Bothacking | -11 -10 ------------ Run | Yrd Mat Used RIF Installer . | . . Robots Hacked . | . . Non-combat . | . . Combat . | . . Robot Hacks Applied . | . . Relay Couplers Released . | . . Fabnet Peak Effective % . | . . Robots Rewired . | . . Allies Hacked . | . . Hacks Repelled . | . . Allies | -11 -10 -------- Run | Yrd Mat Total Allies . | . . Largest Group . | . . Highest-Rated Group . | . . Highest-Rated Ally . | . . Total Orders . | . . Ally Attacks . | . . Total Damage . | . . Kills . | . . Allies Corrupted . | . . Allies Melted . | . . Intel | -11 -10 ------- Run | Yrd Mat Robot Analysis Total 2 | . 2 Derelict Logs Recovered . | . . Drone Launches . | . . Drone Recoveries . | . . Exploration | -11 -10 ------------- Run | Yrd Mat Turns Passed 895 | 54 841 Spaces Moved 565 | 46 519 Core 6 | 4 2 Treads 73 | 1 72 Legs 13 | . 13 Wheels 473 | 41 432 Hover . | . . Flight . | . . Fastest Speed 50 | 50 100 Average Speed 107 | 96 108 Slowest Speed 160 | 160 160 Overloaded Moves . | . . Propulsion Burnouts . | . . Robots Hopped . | . . Cave-ins Triggered . | . . Exploration Rate (%) 37 | 3 72 Regions Visited 1 Branch Regions . Pre-discovered Areas . | . . Known Exits Taken . | . . Unknown Exits Taken 1 | 1 . Scrap Searched . | . . Spaces Dug . | . . Terrain Destroyed . | . . Melee . | . . Projectile . | . . AOE . | . . Terrain Rammed . | . . Walls Destroyed . | . . Machines Disabled . | . . Actions | -11 -10 --------- Run | Yrd Mat Total 733 | 52 681 Wait 41 | . 41 Move 564 | 45 519 Hop . | . . Pick Up 8 | 1 7 Fast Attach 9 | 6 3 Attach . | . . Detach . | . . Swap . | . . Drop . | . . Fire 109 | . 109 Melee . | . . Ram . | . . Kick 2 | . 2 Crush . | . . Escape Stasis . | . . Rewire . | . . Trap . | . . Miscellaneous . | . . Route ------- -11/Scrapyard -10/Materials (discovered 3 exits: [*Mat x3]) History --------- Turn | Location | Event 5 | -11/Scrapyard | Discovered new exit (range 15) 55 | -11/Scrapyard | Entered Materials 188 | -10/Materials | Discovered new exit (range 15) 282 | -10/Materials | Discovered new exit (range 15) 303 | -10/Materials | Build established: Mutant 817 | -10/Materials | Discovered new exit (range 5) 854 | -10/Materials | Core integrity fell below 50% 876 | -10/Materials | Core integrity fell below 20% 896 | -10/Materials | Lost 3 parts (1p1n1w) 896 | -10/Materials | Destroyed by G-34 Mercenary with Small Laser Last Messages --------------- 00833_ ALERT: Hostiles spotted, dispatching reinforcements to Terminal M005. 00836_ G-34 Mercenary suffers critical hit (Burn). 00838_ Lgt. Ion Engine destroyed. 00840_ G-34 Mercenary destroyed. 00861_ Com. Wheel destroyed. 00865_ Med. Laser destroyed. 00869_ Acquired Aluminum Leg. 00870_ G-34 Mercenary heat spikes uncontrollably. 00870_ R-06 Scavenger collects Aluminum Leg. 00871_ G-34 Mercenary heat short circuits Ion Engine. 00871_ Kicked G-34 Mercenary. 00871_ G-34 Mercenary overheating. 00872_ Kicked G-34 Mercenary out of the way. 00873_ Acquired 2 matter. 00889_ Acquired Med. Laser. 00896_ G-34 Mercenary destroyed. Map ----- +----------------------------------------------------+ | ! ############# ^+ #??????? | | # ###### # ! #??????? | | #"T"## %+% """ # ! # # #??????? | | ###### #! """ # # ###########??????? | | ?????# # """ # # # #?????????? | | ?????# # # # # =! T #?????????? | | ?????# # =#* # # !! #?????????? | | ?????# ######## + +% #?????????? | | ?????# #??????# # # #?????????? | | ###### #??????# = # # #?????????? | | % #??????# # ########?????????? | | #????######## #????????????????? | | #????# # #????????????????? | | ##########????# # #????????????????? | | ??????????????#""" + #????????????????? | | ??????????????#""" # #????????????????? | | ###???????????#""" # #????????????????? | | #???????????# ?# % ############?????? | | #???????????######?# % #?????? | | #??????????????????# #?????? | | #??????????????????# #?????? | | #??????????????????################?????? | | ? #?????????????????###########???????????? | | ??#?????????????????# !![ #???????????? | | ????????????????????# ![[ #???????????? | | ????????????????????# !@ #???????????? | | ????????????????????#! o #???????????? | | ????????????????????# """ #???????????? | | ????????????????????# =""" #???????????? | | ????????????????????# "T"%"""g#???????????? | | ????????????????????# """g #???????????? | | ???#######??????????#####/#####???????????? | | ???# ############## #?????????????? | | ???# #?????????????? | | ???# #?????????????? | | ???# % #?????????????? | | ???# ##########/### #?????????????? | | ##### ##??# %! ## ###?????????????? | | = #???#! ! ## #???????????????? | | ##### #???# """" ## #???????????????? | | ????# #???# """"% ## #???????????????? | | ????# #???# """"= ## #???????????????? | | ????# < #???# ## #???????????????? | | ????# #???# ## #???????????????? | | ????#####???# #? #???????????????? | | ????????????##??##+##+#? #???????????????? | | ?????????????????? ????? ???????????????? | | ???????????o???????????? ????????????????? | | ??????????????????????????????????????????? | | ??????????????????????????????????????????? | +----------------------------------------------------+ Best States ------------- Heat Dissipation 25 Energy Generation 10 Energy Capacity 125 Matter Stores 300 Matter Capacity 300 Sight Range 16 Terrain Scan Density 10 Evasion (%) 55 Recoil Reduction 1 Item Schematics ----------------- None Robot Schematics ------------------ None Fabricated ------------ Nothing Alien Tech Used ----------------- None Achievements -------------- None Challenges ------------ None Game ------ Seed ProcessingSmartbombLink Manual? 0 Play Time 00:11:55 Cumulative 170.0 hours Start 2024.04.07 @ 21:53:08 End 2024.04.07 @ 22:04:59 Sessions 1 Manual Loads 0 Difficulty Rogue Special Mode None Game No. 147 Rogue 142 Adventurer 0 Explorer 5 Win Type - Total 5 Types 2/0/1/2/0/0/0/0/0 Lore% 52 Gallery% 61 Achievement% 48 Wizard Run 0 Options --------- Layout 1 ASCII 0 Keyboard 0 Movement Mouse Keybinds 0 Fullscreen 2 Font 24/Tamsyn Map View 50x35 Zoom Use 0% Tactical HUD 1 Map Filters NONE Filters NONE Steam 1 RUN: 89c26bc6-b3d0-4d69-adea-50181662fafd